[Event "Titled Tuesday Blitz June 27 Early 2023"]
[White "Aung Thant Zin"]
[Black "Vaglio Munoz, Jaime"]
[WhiteFideId "13000063"]
[BlackFideId "6500145"]
[WhiteElo "2087"]
[BlackElo "2298"]
[Result "1-0"]
[Round "4"]
[TimeControl "180+2"]
[Date "2023.06.27"]
[WhiteClock "0:00:05"]
[BlackClock "0:00:33"]
[Board "224"]

1. e4 {[%clk 0:03:00]}  c5 {[%clk 0:02:58]} 2. Nf3 {[%clk 0:03:00]}  Qa5 {[%clk 0:02:57]} 3. Nc3 {[%clk 0:02:59]}  a6 {[%clk 0:02:56]} 4. d4 {[%clk 0:02:58]}  b5 {[%clk 0:02:56]} 5. dxc5 {[%clk 0:02:53]}  e6 {[%clk 0:02:56]} 6. Bd3 {[%clk 0:02:50]}  b4 {[%clk 0:02:57]} 7. Ne2 {[%clk 0:02:49]}  Bxc5 {[%clk 0:02:57]} 8. O-O {[%clk 0:02:49]}  Bb7 {[%clk 0:02:57]} 9. Ng3 {[%clk 0:02:47]}  Nf6 {[%clk 0:02:56]} 10. Qe2 {[%clk 0:02:46]}  Nc6 {[%clk 0:02:55]} 11. Be3 {[%clk 0:02:45]}  Qb6 {[%clk 0:02:52]} 12. Bxc5 {[%clk 0:02:44]}  Qxc5 {[%clk 0:02:53]} 13. e5 {[%clk 0:02:40]}  Ng4 {[%clk 0:02:51]} 14. Rad1 {[%clk 0:02:21]}  Ngxe5 {[%clk 0:02:43]} 15. Nxe5 {[%clk 0:02:18]}  Qxe5 {[%clk 0:02:39]} 16. Qd2 {[%clk 0:02:13]}  O-O {[%clk 0:02:24]} 17. Rfe1 {[%clk 0:02:10]}  Qxb2 {[%clk 0:02:24]} 18. Nh5 {[%clk 0:02:04]}  Ne5 {[%clk 0:02:11]} 19. Qg5 {[%clk 0:01:44]}  Ng6 {[%clk 0:02:01]} 20. h4 {[%clk 0:01:41]}  Rac8 {[%clk 0:01:38]} 21. Ng3 {[%clk 0:01:39]}  h6 {[%clk 0:01:28]} 22. Qg4 {[%clk 0:01:37]}  Ne5 {[%clk 0:01:27]} 23. Qh5 {[%clk 0:01:28]}  Nxd3 {[%clk 0:01:26]} 24. Rxd3 {[%clk 0:01:24]}  Qxc2 {[%clk 0:01:26]} 25. Rxd7 {[%clk 0:01:23]}  Rc7 {[%clk 0:01:20]} 26. Rd4 {[%clk 0:01:19]}  Qc3 {[%clk 0:01:17]} 27. Rdd1 {[%clk 0:01:15]}  Rc5 {[%clk 0:01:17]} 28. Qg4 {[%clk 0:01:11]}  Qf6 {[%clk 0:01:16]} 29. Qxb4 {[%clk 0:01:01]}  Rc7 {[%clk 0:01:11]} 30. Re3 {[%clk 0:00:39]}  Bd5 {[%clk 0:01:09]} 31. Rde1 {[%clk 0:00:36]}  Rfc8 {[%clk 0:01:08]} 32. Nh5 {[%clk 0:00:33]}  Qf5 {[%clk 0:00:52]} 33. Nxg7 {[%clk 0:00:17]}  Kxg7 {[%clk 0:00:50]} 34. Rg3+ {[%clk 0:00:17]}  Kh7 {[%clk 0:00:49]} 35. Qb2 {[%clk 0:00:15]}  f6 {[%clk 0:00:46]} 36. h5 {[%clk 0:00:11]}  Rc2 {[%clk 0:00:41]} 37. Qb4 {[%clk 0:00:07]}  Qxf2+ {[%clk 0:00:39]} 38. Kh2 {[%clk 0:00:05]}  R2c4 {[%clk 0:00:34]} 39. Qe7+ {[%clk 0:00:04]}  Kh8 {[%clk 0:00:33]} 40. Qg7# {[%clk 0:00:05]} 1-0


[Site "https://www.chess.com"]

[Event "Titled Tuesday Blitz June 27 Early 2023"]
[White "Zaksaite, Salomeja"]
[Black "Maluco_do_Natal_00"]
[WhiteFideId "12801496"]
[WhiteElo "2286"]
[BlackElo "2052"]
[Result "1-0"]
[Round "4"]
[TimeControl "180+2"]
[Date "2023.06.27"]
[WhiteClock "0:00:11"]
[BlackClock "0:00:00"]
[Board "225"]

1. e4 {[%clk 0:02:59]}  c5 {[%clk 0:02:59]} 2. Nf3 {[%clk 0:02:59]}  Nc6 {[%clk 0:02:58]} 3. Bb5 {[%clk 0:02:58]}  e6 {[%clk 0:02:58]} 4. Bxc6 {[%clk 0:02:57]}  bxc6 {[%clk 0:02:58]} 5. Qe2 {[%clk 0:02:53]}  Ne7 {[%clk 0:02:42]} 6. d3 {[%clk 0:02:47]}  Ng6 {[%clk 0:02:42]} 7. O-O {[%clk 0:02:47]}  e5 {[%clk 0:02:42]} 8. g3 {[%clk 0:02:29]}  Be7 {[%clk 0:02:31]} 9. h4 {[%clk 0:02:25]}  d6 {[%clk 0:02:31]} 10. Nh2 {[%clk 0:02:17]}  Rb8 {[%clk 0:01:40]} 11. b3 {[%clk 0:02:15]}  Bf6 {[%clk 0:01:25]} 12. Nd2 {[%clk 0:02:11]}  O-O {[%clk 0:01:24]} 13. Nc4 {[%clk 0:02:03]}  Bh3 {[%clk 0:01:10]} 14. Re1 {[%clk 0:02:02]}  Be6 {[%clk 0:01:09]} 15. h5 {[%clk 0:01:58]}  Ne7 {[%clk 0:01:04]} 16. Ng4 {[%clk 0:01:57]}  Nc8 {[%clk 0:00:46]} 17. Bd2 {[%clk 0:01:53]}  Bg5 {[%clk 0:00:41]} 18. f4 {[%clk 0:01:41]}  exf4 {[%clk 0:00:29]} 19. gxf4 {[%clk 0:01:40]}  Bh4 {[%clk 0:00:24]} 20. Rf1 {[%clk 0:01:39]}  f5 {[%clk 0:00:18]} 21. Nh2 {[%clk 0:01:25]}  Qe8 {[%clk 0:00:13]} 22. Rae1 {[%clk 0:01:20]}  Bxe1 {[%clk 0:00:13]} 23. Rxe1 {[%clk 0:01:19]}  Qf7 {[%clk 0:00:11]} 24. Kh1 {[%clk 0:01:10]}  Bxc4 {[%clk 0:00:10]} 25. bxc4 {[%clk 0:01:10]}  Ne7 {[%clk 0:00:10]} 26. Rg1 {[%clk 0:01:06]}  Kh8 {[%clk 0:00:09]} 27. Bc3 {[%clk 0:01:05]}  Rg8 {[%clk 0:00:09]} 28. h6 {[%clk 0:01:05]}  Ng6 {[%clk 0:00:07]} 29. Qh5 {[%clk 0:00:26]}  Rb7 {[%clk 0:00:06]} 30. exf5 {[%clk 0:00:16]}  Nxf4 {[%clk 0:00:06]} 31. hxg7+ {[%clk 0:00:13]}  Rxg7 {[%clk 0:00:03]} 32. Bxg7+ {[%clk 0:00:13]}  Qxg7 {[%clk 0:00:00]} 33. Qe8+ {[%clk 0:00:11]} 1-0


[Site "https://www.chess.com"]

[Event "Titled Tuesday Blitz June 27 Early 2023"]
[White "De Souza, Cristiano Gomes"]
[Black "Semenova, Alina"]
[WhiteFideId "2151758"]
[BlackFideId "24113875"]
[WhiteElo "2252"]
[BlackElo "2048"]
[Result "1-0"]
[Round "4"]
[TimeControl "180+2"]
[Date "2023.06.27"]
[WhiteClock "0:01:19"]
[BlackClock "0:00:53"]
[Board "226"]

1. d4 {[%clk 0:03:00]}  d5 {[%clk 0:02:59]} 2. c4 {[%clk 0:03:00]}  e6 {[%clk 0:03:00]} 3. Nf3 {[%clk 0:02:56]}  Nf6 {[%clk 0:03:00]} 4. Nc3 {[%clk 0:02:55]}  Be7 {[%clk 0:03:00]} 5. Bg5 {[%clk 0:02:54]}  O-O {[%clk 0:03:00]} 6. e3 {[%clk 0:02:54]}  h6 {[%clk 0:02:58]} 7. Bh4 {[%clk 0:02:54]}  Nbd7 {[%clk 0:02:58]} 8. c5 {[%clk 0:02:54]}  c6 {[%clk 0:02:56]} 9. b4 {[%clk 0:02:53]}  Ne4 {[%clk 0:02:54]} 10. Bxe7 {[%clk 0:02:52]}  Qxe7 {[%clk 0:02:55]} 11. Nxe4 {[%clk 0:02:52]}  dxe4 {[%clk 0:02:56]} 12. Nd2 {[%clk 0:02:52]}  f5 {[%clk 0:02:56]} 13. Nc4 {[%clk 0:02:53]}  Nf6 {[%clk 0:02:54]} 14. Nd6 {[%clk 0:02:51]}  Nd5 {[%clk 0:02:54]} 15. Qb3 {[%clk 0:02:49]}  Kh7 {[%clk 0:02:49]} 16. Bc4 {[%clk 0:02:47]}  b5 {[%clk 0:02:43]} 17. Bxd5 {[%clk 0:02:44]}  exd5 {[%clk 0:02:44]} 18. O-O {[%clk 0:02:43]}  Be6 {[%clk 0:02:40]} 19. a4 {[%clk 0:02:42]}  a6 {[%clk 0:02:40]} 20. Ra2 {[%clk 0:02:42]}  Qg5 {[%clk 0:02:27]} 21. Rfa1 {[%clk 0:02:39]}  Rf6 {[%clk 0:02:26]} 22. axb5 {[%clk 0:02:38]}  Rg6 {[%clk 0:02:25]} 23. g3 {[%clk 0:02:37]}  f4 {[%clk 0:02:25]} 24. exf4 {[%clk 0:02:36]}  Qh5 {[%clk 0:02:23]} 25. bxc6 {[%clk 0:02:30]}  Bg4 {[%clk 0:02:21]} 26. Qb1 {[%clk 0:02:19]}  Bf3 {[%clk 0:01:58]} 27. Rxa6 {[%clk 0:02:12]}  Rxa6 {[%clk 0:01:56]} 28. Rxa6 {[%clk 0:02:12]}  e3 {[%clk 0:01:50]} 29. Ra8 {[%clk 0:01:57]}  exf2+ {[%clk 0:01:37]} 30. Kxf2 {[%clk 0:01:55]}  Qxh2+ {[%clk 0:01:37]} 31. Kxf3 {[%clk 0:01:32]}  Qxg3+ {[%clk 0:01:36]} 32. Ke2 {[%clk 0:01:32]}  Qg2+ {[%clk 0:01:23]} 33. Ke3 {[%clk 0:01:31]}  Qg3+ {[%clk 0:01:21]} 34. Kd2 {[%clk 0:01:29]}  Qxf4+ {[%clk 0:01:21]} 35. Kc3 {[%clk 0:01:28]}  Qe3+ {[%clk 0:01:20]} 36. Qd3 {[%clk 0:01:28]}  Qc1+ {[%clk 0:01:20]} 37. Kb3 {[%clk 0:01:24]}  Qf4 {[%clk 0:00:53]} 38. c7 {[%clk 0:01:19]} 1-0


[Site "https://www.chess.com"]

[Event "Titled Tuesday Blitz June 27 Early 2023"]
[White "Ajavon, Anthony Obieni"]
[Black "Zampronha, Wladimir Camilo"]
[WhiteFideId "12600784"]
[BlackFideId "2103087"]
[WhiteElo "2005"]
[BlackElo "2251"]
[Result "1-0"]
[Round "4"]
[TimeControl "180+2"]
[Date "2023.06.27"]
[WhiteClock "0:01:49"]
[BlackClock "0:00:00"]
[Board "227"]

1. d4 {[%clk 0:03:00]}  Nf6 {[%clk 0:02:59]} 2. c4 {[%clk 0:03:01]}  e6 {[%clk 0:03:00]} 3. Nc3 {[%clk 0:03:02]}  Bb4 {[%clk 0:03:00]} 4. Qc2 {[%clk 0:03:02]}  O-O {[%clk 0:02:51]} 5. Bg5 {[%clk 0:02:59]}  h6 {[%clk 0:02:15]} 6. Bxf6 {[%clk 0:02:59]}  Qxf6 {[%clk 0:02:14]} 7. Nf3 {[%clk 0:03:00]}  d6 {[%clk 0:02:11]} 8. e3 {[%clk 0:03:00]}  Nd7 {[%clk 0:02:10]} 9. Be2 {[%clk 0:02:53]}  e5 {[%clk 0:02:08]} 10. O-O {[%clk 0:02:53]}  Bxc3 {[%clk 0:02:09]} 11. Qxc3 {[%clk 0:02:51]}  Re8 {[%clk 0:02:09]} 12. dxe5 {[%clk 0:02:50]}  Nxe5 {[%clk 0:02:09]} 13. Nxe5 {[%clk 0:02:50]}  Rxe5 {[%clk 0:02:06]} 14. Rfd1 {[%clk 0:02:49]}  Bf5 {[%clk 0:02:04]} 15. Bf3 {[%clk 0:02:43]}  Be4 {[%clk 0:01:45]} 16. Bxe4 {[%clk 0:02:41]}  Rxe4 {[%clk 0:01:46]} 17. Qxf6 {[%clk 0:02:41]}  gxf6 {[%clk 0:01:47]} 18. b3 {[%clk 0:02:40]}  Rae8 {[%clk 0:01:40]} 19. Kf1 {[%clk 0:02:40]}  Kg7 {[%clk 0:01:39]} 20. Rd3 {[%clk 0:02:37]}  f5 {[%clk 0:01:38]} 21. Rad1 {[%clk 0:02:37]}  f4 {[%clk 0:01:37]} 22. exf4 {[%clk 0:02:35]}  Rxf4 {[%clk 0:01:38]} 23. Re1 {[%clk 0:02:31]}  Rfe4 {[%clk 0:01:38]} 24. Rde3 {[%clk 0:02:29]}  Rxe3 {[%clk 0:01:36]} 25. Rxe3 {[%clk 0:02:30]}  Rxe3 {[%clk 0:01:30]} 26. fxe3 {[%clk 0:02:31]}  Kf6 {[%clk 0:01:29]} 27. Ke2 {[%clk 0:02:30]}  Ke5 {[%clk 0:01:30]} 28. Kd3 {[%clk 0:02:26]}  c6 {[%clk 0:01:29]} 29. g3 {[%clk 0:02:16]}  h5 {[%clk 0:01:27]} 30. e4 {[%clk 0:02:15]}  b6 {[%clk 0:01:25]} 31. Ke3 {[%clk 0:02:11]}  a6 {[%clk 0:01:22]} 32. a3 {[%clk 0:02:00]}  a5 {[%clk 0:01:22]} 33. a4 {[%clk 0:01:59]}  f6 {[%clk 0:01:17]} 34. h3 {[%clk 0:01:56]}  d5 {[%clk 0:00:25]} 35. cxd5 {[%clk 0:01:53]}  cxd5 {[%clk 0:00:26]} 36. exd5 {[%clk 0:01:53]}  Kxd5 {[%clk 0:00:27]} 37. Kf4 {[%clk 0:01:52]}  Kc5 {[%clk 0:00:15]} 38. g4 {[%clk 0:01:51]}  Kb4 {[%clk 0:00:00]} 39. gxh5 {[%clk 0:01:49]} 1-0


[Site "https://www.chess.com"]

[Event "Titled Tuesday Blitz June 27 Early 2023"]
[White "Guevara Sanchez, Erick Marvin"]
[Black "Tuleyeva-Aketayeva, Dana"]
[WhiteFideId "6700136"]
[BlackFideId "13701932"]
[WhiteElo "1990"]
[BlackElo "2238"]
[Result "1-0"]
[Round "4"]
[TimeControl "180+2"]
[Date "2023.06.27"]
[WhiteClock "0:01:50"]
[BlackClock "0:00:01"]
[Board "228"]

1. e4 {[%clk 0:03:00]}  c5 {[%clk 0:02:59]} 2. Nf3 {[%clk 0:03:00]}  Nc6 {[%clk 0:03:00]} 3. d4 {[%clk 0:03:00]}  cxd4 {[%clk 0:03:01]} 4. Nxd4 {[%clk 0:03:01]}  Nf6 {[%clk 0:03:01]} 5. Nc3 {[%clk 0:03:01]}  e5 {[%clk 0:03:01]} 6. Ndb5 {[%clk 0:03:00]}  d6 {[%clk 0:03:02]} 7. Nd5 {[%clk 0:02:59]}  Nxd5 {[%clk 0:03:02]} 8. exd5 {[%clk 0:03:00]}  Nb8 {[%clk 0:03:03]} 9. c4 {[%clk 0:02:59]}  Be7 {[%clk 0:03:02]} 10. Bd3 {[%clk 0:02:58]}  O-O {[%clk 0:03:01]} 11. O-O {[%clk 0:02:58]}  f5 {[%clk 0:03:02]} 12. Be3 {[%clk 0:02:53]}  a6 {[%clk 0:02:33]} 13. Nc3 {[%clk 0:02:51]}  f4 {[%clk 0:02:24]} 14. Bd2 {[%clk 0:02:49]}  Kh8 {[%clk 0:02:24]} 15. f3 {[%clk 0:02:48]}  g5 {[%clk 0:02:22]} 16. Ne4 {[%clk 0:02:43]}  Nd7 {[%clk 0:02:20]} 17. Bc3 {[%clk 0:02:40]}  Qb6+ {[%clk 0:02:18]} 18. Kh1 {[%clk 0:02:38]}  Nc5 {[%clk 0:02:18]} 19. Nxc5 {[%clk 0:02:37]}  Qxc5 {[%clk 0:02:18]} 20. Qe2 {[%clk 0:02:36]}  Bf6 {[%clk 0:02:12]} 21. b4 {[%clk 0:02:33]}  Qc7 {[%clk 0:02:13]} 22. c5 {[%clk 0:02:29]}  Bd7 {[%clk 0:01:54]} 23. Rac1 {[%clk 0:02:24]}  dxc5 {[%clk 0:01:43]} 24. bxc5 {[%clk 0:02:22]}  Qxc5 {[%clk 0:01:44]} 25. Bxe5 {[%clk 0:02:21]}  Qe7 {[%clk 0:01:44]} 26. Bxf6+ {[%clk 0:02:18]}  Qxf6 {[%clk 0:01:44]} 27. Qe4 {[%clk 0:02:16]}  Bf5 {[%clk 0:01:42]} 28. Qc4 {[%clk 0:02:14]}  Rac8 {[%clk 0:01:39]} 29. Qb3 {[%clk 0:02:13]}  Rxc1 {[%clk 0:01:24]} 30. Rxc1 {[%clk 0:02:12]}  Rc8 {[%clk 0:01:17]} 31. Rxc8+ {[%clk 0:02:07]}  Bxc8 {[%clk 0:01:18]} 32. Qc2 {[%clk 0:02:04]}  Qa1+ {[%clk 0:01:12]} 33. Qb1 {[%clk 0:02:04]}  Qxb1+ {[%clk 0:01:10]} 34. Bxb1 {[%clk 0:02:05]}  Bd7 {[%clk 0:01:05]} 35. Be4 {[%clk 0:02:04]}  h6 {[%clk 0:01:04]} 36. Kg1 {[%clk 0:02:02]}  Kg7 {[%clk 0:01:04]} 37. Kf1 {[%clk 0:02:02]}  Kf6 {[%clk 0:01:04]} 38. Ke2 {[%clk 0:02:01]}  Ke5 {[%clk 0:01:05]} 39. Kd3 {[%clk 0:02:00]}  Bb5+ {[%clk 0:00:59]} 40. Kc3 {[%clk 0:02:00]}  Bf1 {[%clk 0:00:58]} 41. g3 {[%clk 0:02:00]}  b6 {[%clk 0:00:53]} 42. gxf4+ {[%clk 0:01:59]}  gxf4 {[%clk 0:00:50]} 43. h4 {[%clk 0:01:58]}  Bb5 {[%clk 0:00:46]} 44. Kb4 {[%clk 0:01:56]}  Be8 {[%clk 0:00:43]} 45. a4 {[%clk 0:01:54]}  Bf7 {[%clk 0:00:34]} 46. Kc4 {[%clk 0:01:54]}  b5+ {[%clk 0:00:28]} 47. axb5 {[%clk 0:01:53]}  axb5+ {[%clk 0:00:29]} 48. Kc5 {[%clk 0:01:54]}  b4 {[%clk 0:00:26]} 49. d6 {[%clk 0:01:54]}  b3 {[%clk 0:00:25]} 50. d7 {[%clk 0:01:53]}  b2 {[%clk 0:00:06]} 51. d8=Q {[%clk 0:01:52]}  b1=Q {[%clk 0:00:04]} 52. Bxb1 {[%clk 0:01:52]}  Be6 {[%clk 0:00:03]} 53. Qe7 {[%clk 0:01:51]}  h5 {[%clk 0:00:02]} 54. Ba2 {[%clk 0:01:51]}  Kf5 {[%clk 0:00:01]} 55. Qxe6# {[%clk 0:01:50]} 1-0


[Site "https://www.chess.com"]

[Event "Titled Tuesday Blitz June 27 Early 2023"]
[White "Zuriel, Marisa"]
[Black "Castillo Pena, Patricia Evarista"]
[WhiteFideId "109142"]
[BlackFideId "6412106"]
[WhiteElo "2215"]
[BlackElo "1910"]
[Result "1-0"]
[Round "4"]
[TimeControl "180+2"]
[Date "2023.06.27"]
[WhiteClock "0:01:47"]
[BlackClock "0:00:00"]
[Board "231"]

1. e4 {[%clk 0:03:00]}  c5 {[%clk 0:00:47]} 2. Nf3 {[%clk 0:03:00]}  d6 {[%clk 0:00:47]} 3. d4 {[%clk 0:02:59]}  cxd4 {[%clk 0:00:47]} 4. Nxd4 {[%clk 0:03:00]}  Nf6 {[%clk 0:00:47]} 5. Nc3 {[%clk 0:03:00]}  a6 {[%clk 0:00:47]} 6. h3 {[%clk 0:03:00]}  e5 {[%clk 0:00:48]} 7. Nde2 {[%clk 0:03:00]}  Be6 {[%clk 0:00:48]} 8. g4 {[%clk 0:03:00]}  d5 {[%clk 0:00:48]} 9. exd5 {[%clk 0:02:59]}  Nxd5 {[%clk 0:00:48]} 10. Bg2 {[%clk 0:02:59]}  Nxc3 {[%clk 0:00:46]} 11. Qxd8+ {[%clk 0:02:59]}  Kxd8 {[%clk 0:00:46]} 12. Nxc3 {[%clk 0:03:00]}  Nc6 {[%clk 0:00:46]} 13. Be3 {[%clk 0:03:00]}  Bb4 {[%clk 0:00:45]} 14. O-O-O+ {[%clk 0:02:59]}  Kc7 {[%clk 0:00:45]} 15. Nd5+ {[%clk 0:02:58]}  Bxd5 {[%clk 0:00:44]} 16. Bxd5 {[%clk 0:02:59]}  f6 {[%clk 0:00:43]} 17. c3 {[%clk 0:02:59]}  Be7 {[%clk 0:00:42]} 18. f4 {[%clk 0:02:59]}  Bd6 {[%clk 0:00:40]} 19. f5 {[%clk 0:02:48]}  Rhd8 {[%clk 0:00:33]} 20. Be4 {[%clk 0:02:48]}  Rac8 {[%clk 0:00:31]} 21. Rd2 {[%clk 0:02:45]}  Na5 {[%clk 0:00:25]} 22. Bd5 {[%clk 0:02:41]}  b5 {[%clk 0:00:23]} 23. Be6 {[%clk 0:02:39]}  Rb8 {[%clk 0:00:22]} 24. b3 {[%clk 0:02:37]}  Ba3+ {[%clk 0:00:19]} 25. Kc2 {[%clk 0:02:37]}  Rxd2+ {[%clk 0:00:19]} 26. Bxd2 {[%clk 0:02:37]}  Rd8 {[%clk 0:00:19]} 27. Be3 {[%clk 0:02:34]}  Rd6 {[%clk 0:00:18]} 28. b4 {[%clk 0:02:29]}  Nc4 {[%clk 0:00:16]} 29. Bxc4 {[%clk 0:02:27]}  bxc4 {[%clk 0:00:16]} 30. Rd1 {[%clk 0:02:24]}  Rxd1 {[%clk 0:00:15]} 31. Kxd1 {[%clk 0:02:24]}  a5 {[%clk 0:00:16]} 32. bxa5 {[%clk 0:02:23]}  Kb7 {[%clk 0:00:14]} 33. Kc2 {[%clk 0:02:20]}  Ka6 {[%clk 0:00:14]} 34. Bb6 {[%clk 0:02:20]}  Bd6 {[%clk 0:00:12]} 35. Bd8 {[%clk 0:02:18]}  e4 {[%clk 0:00:11]} 36. Kd2 {[%clk 0:02:17]}  Bf4+ {[%clk 0:00:11]} 37. Ke2 {[%clk 0:02:17]}  Be5 {[%clk 0:00:10]} 38. Kd2 {[%clk 0:02:13]}  e3+ {[%clk 0:00:10]} 39. Kxe3 {[%clk 0:02:12]}  Bxc3 {[%clk 0:00:10]} 40. Ke4 {[%clk 0:02:07]}  Bxa5 {[%clk 0:00:09]} 41. Be7 {[%clk 0:01:55]}  Kb5 {[%clk 0:00:08]} 42. Kd4 {[%clk 0:01:48]}  Bb6+ {[%clk 0:00:06]} 43. Kc3 {[%clk 0:01:48]}  Ba5+ {[%clk 0:00:00]} 44. Kc2 {[%clk 0:01:47]} 1-0


[Site "https://www.chess.com"]

[Event "Titled Tuesday Blitz June 27 Early 2023"]
[White "Lazavik, Denis"]
[Black "Demchenko, Anton"]
[WhiteFideId "13515110"]
[BlackFideId "4160258"]
[WhiteElo "3037"]
[BlackElo "2915"]
[Result "1/2-1/2"]
[Round "5"]
[TimeControl "180+2"]
[Date "2023.06.27"]
[WhiteClock "0:00:23"]
[BlackClock "0:00:15"]
[Board "2"]

1. d4 {[%clk 0:03:00]}  Nf6 {[%clk 0:02:59]} 2. c4 {[%clk 0:03:01]}  d6 {[%clk 0:03:00]} 3. Nf3 {[%clk 0:03:01]}  Nc6 {[%clk 0:03:00]} 4. g3 {[%clk 0:02:56]}  e5 {[%clk 0:02:58]} 5. Bg2 {[%clk 0:02:57]}  Be7 {[%clk 0:02:58]} 6. Nc3 {[%clk 0:02:56]}  O-O {[%clk 0:02:59]} 7. O-O {[%clk 0:02:57]}  h6 {[%clk 0:02:58]} 8. h3 {[%clk 0:02:53]}  a5 {[%clk 0:02:54]} 9. e4 {[%clk 0:02:53]}  Re8 {[%clk 0:02:47]} 10. Be3 {[%clk 0:02:53]}  Bd7 {[%clk 0:02:45]} 11. Qc2 {[%clk 0:02:51]}  Qc8 {[%clk 0:02:38]} 12. Kh2 {[%clk 0:02:51]}  Nh7 {[%clk 0:02:34]} 13. d5 {[%clk 0:02:45]}  Nb4 {[%clk 0:02:32]} 14. Qd2 {[%clk 0:02:45]}  f5 {[%clk 0:02:28]} 15. c5 {[%clk 0:02:23]}  fxe4 {[%clk 0:02:20]} 16. Nxe4 {[%clk 0:02:23]}  Bf5 {[%clk 0:02:21]} 17. Ng1 {[%clk 0:02:17]}  Nf6 {[%clk 0:02:14]} 18. Nxf6+ {[%clk 0:01:57]}  Bxf6 {[%clk 0:02:15]} 19. cxd6 {[%clk 0:01:53]}  cxd6 {[%clk 0:02:14]} 20. Rac1 {[%clk 0:01:53]}  Qd7 {[%clk 0:02:12]} 21. a3 {[%clk 0:01:52]}  Nd3 {[%clk 0:02:09]} 22. Rc4 {[%clk 0:01:49]}  e4 {[%clk 0:02:03]} 23. b3 {[%clk 0:01:33]}  Qb5 {[%clk 0:01:49]} 24. Qc2 {[%clk 0:01:28]}  Qxd5 {[%clk 0:01:41]} 25. Ne2 {[%clk 0:01:24]}  Qf7 {[%clk 0:01:21]} 26. Nd4 {[%clk 0:01:22]}  Bg6 {[%clk 0:01:14]} 27. Nb5 {[%clk 0:01:21]}  Rad8 {[%clk 0:01:03]} 28. Bb6 {[%clk 0:01:14]}  Rd7 {[%clk 0:01:00]} 29. Bxa5 {[%clk 0:01:05]}  d5 {[%clk 0:00:47]} 30. Rc8 {[%clk 0:01:04]}  h5 {[%clk 0:00:32]} 31. Bb6 {[%clk 0:00:51]}  Be5 {[%clk 0:00:29]} 32. Bd4 {[%clk 0:00:45]}  Bxd4 {[%clk 0:00:27]} 33. Nxd4 {[%clk 0:00:44]}  Rxc8 {[%clk 0:00:22]} 34. Qxc8+ {[%clk 0:00:43]}  Kh7 {[%clk 0:00:23]} 35. h4 {[%clk 0:00:35]}  Rc7 {[%clk 0:00:19]} 36. Qd8 {[%clk 0:00:31]}  Rd7 {[%clk 0:00:15]} 37. Qc8 {[%clk 0:00:26]}  Rc7 {[%clk 0:00:15]} 38. Qd8 {[%clk 0:00:26]}  Rd7 {[%clk 0:00:15]} 39. Qc8 {[%clk 0:00:23]} 1/2-1/2


[Site "https://www.chess.com"]

[Event "Titled Tuesday Blitz June 27 Early 2023"]
[White "Paravyan, David"]
[Black "Makhnev, Denis"]
[WhiteFideId "4194985"]
[BlackFideId "13707647"]
[WhiteElo "3003"]
[BlackElo "2904"]
[Result "0-1"]
[Round "5"]
[TimeControl "180+2"]
[Date "2023.06.27"]
[WhiteClock "0:00:06"]
[BlackClock "0:00:07"]
[Board "3"]

1. e4 {[%clk 0:02:59]}  e5 {[%clk 0:03:00]} 2. Nf3 {[%clk 0:02:58]}  Nc6 {[%clk 0:03:00]} 3. Bb5 {[%clk 0:02:59]}  a6 {[%clk 0:03:01]} 4. Ba4 {[%clk 0:02:59]}  Nf6 {[%clk 0:03:01]} 5. O-O {[%clk 0:03:00]}  Be7 {[%clk 0:03:01]} 6. Re1 {[%clk 0:02:59]}  b5 {[%clk 0:03:00]} 7. Bb3 {[%clk 0:03:00]}  O-O {[%clk 0:03:01]} 8. a4 {[%clk 0:03:00]}  Bb7 {[%clk 0:03:01]} 9. d3 {[%clk 0:03:00]}  d6 {[%clk 0:03:01]} 10. Bd2 {[%clk 0:02:59]}  h6 {[%clk 0:02:39]} 11. h3 {[%clk 0:02:58]}  Qd7 {[%clk 0:02:39]} 12. Nc3 {[%clk 0:02:54]}  Na5 {[%clk 0:02:36]} 13. Bd5 {[%clk 0:02:52]}  c6 {[%clk 0:02:34]} 14. Ba2 {[%clk 0:02:49]}  b4 {[%clk 0:02:35]} 15. Ne2 {[%clk 0:02:49]}  c5 {[%clk 0:02:32]} 16. Ng3 {[%clk 0:02:50]}  Rfe8 {[%clk 0:02:28]} 17. Nh4 {[%clk 0:02:50]}  b3 {[%clk 0:02:13]} 18. cxb3 {[%clk 0:02:49]}  Nc6 {[%clk 0:02:13]} 19. Nhf5 {[%clk 0:02:46]}  a5 {[%clk 0:02:02]} 20. Qf3 {[%clk 0:02:44]}  Bd8 {[%clk 0:01:01]} 21. Nh5 {[%clk 0:02:42]}  Nd4 {[%clk 0:00:28]} 22. Nxd4 {[%clk 0:02:38]}  exd4 {[%clk 0:00:28]} 23. Nxf6+ {[%clk 0:02:36]}  Bxf6 {[%clk 0:00:28]} 24. Bxh6 {[%clk 0:02:36]}  d5 {[%clk 0:00:25]} 25. b4 {[%clk 0:02:21]}  dxe4 {[%clk 0:00:21]} 26. dxe4 {[%clk 0:02:22]}  axb4 {[%clk 0:00:21]} 27. Bc4 {[%clk 0:02:22]}  Rxa4 {[%clk 0:00:19]} 28. Rxa4 {[%clk 0:02:16]}  Qxa4 {[%clk 0:00:20]} 29. Qf5 {[%clk 0:02:15]}  Qc6 {[%clk 0:00:15]} 30. Bf4 {[%clk 0:02:10]}  Rxe4 {[%clk 0:00:12]} 31. Rxe4 {[%clk 0:01:40]}  Qxe4 {[%clk 0:00:13]} 32. Qg4 {[%clk 0:01:41]}  d3 {[%clk 0:00:09]} 33. b3 {[%clk 0:01:42]}  Qe1+ {[%clk 0:00:06]} 34. Kh2 {[%clk 0:01:42]}  d2 {[%clk 0:00:06]} 35. Be2 {[%clk 0:00:36]}  Qxf2 {[%clk 0:00:06]} 36. Bxd2 {[%clk 0:00:33]}  Be5+ {[%clk 0:00:06]} 37. Kh1 {[%clk 0:00:34]}  Bd4 {[%clk 0:00:07]} 38. Kh2 {[%clk 0:00:28]}  Qg1+ {[%clk 0:00:07]} 39. Kg3 {[%clk 0:00:28]}  Qxg2+ {[%clk 0:00:08]} 40. Kh4 {[%clk 0:00:28]}  Qf2+ {[%clk 0:00:05]} 41. Kh5 {[%clk 0:00:27]}  g6+ {[%clk 0:00:04]} 42. Kg5 {[%clk 0:00:27]}  Qf6+ {[%clk 0:00:03]} 43. Kh6 {[%clk 0:00:27]}  Qe7 {[%clk 0:00:02]} 44. Qxg6+ {[%clk 0:00:08]}  fxg6 {[%clk 0:00:03]} 45. Bc4+ {[%clk 0:00:09]}  Qf7 {[%clk 0:00:03]} 46. Bxf7+ {[%clk 0:00:03]}  Kxf7 {[%clk 0:00:04]} 47. h4 {[%clk 0:00:04]}  Bd5 {[%clk 0:00:04]} 48. h5 {[%clk 0:00:04]}  gxh5 {[%clk 0:00:05]} 49. Kxh5 {[%clk 0:00:05]}  Bxb3 {[%clk 0:00:06]} 50. Kg4 {[%clk 0:00:06]}  Ke6 {[%clk 0:00:07]} 51. Kf3 {[%clk 0:00:06]}  Kd5 {[%clk 0:00:07]} 0-1


[Site "https://www.chess.com"]